bitfinex/quotes_BTCUSD_20250508
["timestamp","ask_amount","ask_price","bid_price","bid_amount"]
[1746671534094,0.01011347,98878.0,98873.0,0.01011398]
[1746671534250,0.0162,98879.0,98875.0,0.01011378]
[1746671534651,0.0162,98879.0,98876.0,0.01011367]
[1746671534860,0.0120227,98880.0,98876.0,0.01011367]
[1746671535301,0.0140227,98880.0,98876.0,0.01011367]
[1746671535513,0.004,98880.0,98877.0,0.21238507]
[1746671535663,0.002,98880.0,98877.0,0.21238507]
[1746671536553,0.01011296,98883.0,98878.0,0.01011347]
[1746671536749,0.002,98880.0,98879.0,0.21238078]
[1746671537087,0.004,98880.0,98879.0,0.21238078]
[1746671537292,0.002,98880.0,98879.0,0.21238078]
[1746671538338,0.004,98880.0,98879.0,0.21238078]
[1746671538538,0.002,98880.0,98879.0,0.21238078]
[1746671539366,0.002,98880.0,98879.0,0.20226741]
[1746671539574,0.01011296,98883.0,98879.0,0.21238078]
[1746671539814,0.004,98880.0,98879.0,0.21238078]
[1746671540439,0.002,98880.0,98879.0,0.21238078]
[1746671540643,0.00945731,98887.0,98885.0,0.20225424]
[1746671541343,1.0021,98888.0,98885.0,0.21236699]
[1746671542981,1.0051,98888.0,98887.0,0.20225105]
[1746671543316,1.0021,98888.0,98887.0,0.20225105]
[1746671543974,1.0041,98888.0,98887.0,0.20225105]
[1746671544171,1.00355168,98888.0,98887.0,0.20225105]
[1746671544582,1.00555168,98888.0,98887.0,0.20225105]
[1746671545190,1.00455168,98888.0,98887.0,0.20225105]
[1746671545606,1.00555168,98888.0,98887.0,0.20225105]
[1746671546285,1.00555168,98888.0,98884.0,0.21237004]
[1746671546438,1.00555168,98888.0,98886.0,0.20225286]
[1746671546666,1.00555168,98888.0,98887.0,0.5]
[1746671547061,1.00455168,98888.0,98887.0,0.5]
[1746671547928,1.00255168,98888.0,98887.0,0.5]
[1746671548233,1.00455168,98888.0,98885.0,0.01851485]
[1746671548439,0.20225105,98887.0,98885.0,0.01851485]
[1746671548611,0.01011296,98883.0,98878.0,0.20226842]
[1746671548814,0.02561265,98886.0,98882.0,0.20226095]
[1746671549009,0.01011265,98886.0,98882.0,0.20226095]
[1746671549213,0.01011265,98886.0,98880.0,0.01011326]
[1746671549214,1.01566413,98888.0,98881.0,0.21237562]
[1746671549416,1.01566413,98888.0,98885.0,0.01011275]
[1746671549417,1.00455168,98888.0,98885.0,0.01011275]
[1746671549581,1.00255168,98888.0,98884.0,0.01011285]
[1746671549787,1.00355168,98888.0,98884.0,0.01011285]
[1746671549987,0.00945153,98887.0,98883.0,0.2123712]
[1746671550201,0.00945153,98887.0,98884.0,0.01011285]
[1746671550603,0.00945153,98887.0,98883.0,0.2123712]
[1746671550604,0.01956408,98887.0,98883.0,0.01011296]
[1746671550804,0.20225309,98886.0,98881.0,0.01011316]
[1746671551159,0.01011275,98885.0,98882.0,0.01011306]
[1746671551605,0.01011265,98886.0,98883.0,0.01011296]
[1746671552229,0.01011275,98885.0,98881.0,0.01011316]
[1746671552431,0.01011265,98886.0,98883.0,0.01011296]
[1746671552636,0.01011306,98882.0,98877.0,0.01011357]
[1746671552848,0.01111275,98885.0,98881.0,0.01011316]
[1746671553465,0.01211275,98885.0,98881.0,0.01011316]
[1746671553672,0.002,98885.0,98882.0,0.21237434]
[1746671554078,0.001,98885.0,98884.0,0.21835719]
[1746671554848,1.00255168,98888.0,98887.0,0.20225105]
[1746671556080,0.50255168,98888.0,98887.0,0.20325105]
[1746671557009,0.50255168,98888.0,98887.0,0.70325105]
[1746671559219,0.50255168,98888.0,98887.0,0.71965105]
[1746671559419,0.50255168,98888.0,98887.0,0.82144517]
[1746671560034,0.50255168,98888.0,98887.0,0.83996002]
[1746671562535,0.50255168,98888.0,98887.0,0.85546002]
[1746671563708,0.50255168,98888.0,98887.0,1.27376002]
[1746671563864,0.50255168,98888.0,98887.0,1.27676002]
[1746671564220,0.50255168,98888.0,98887.0,1.27576002]
[1746671564363,0.49255168,98888.0,98887.0,1.27576002]
[1746671565003,0.49255168,98888.0,98887.0,1.27676002]
[1746671565589,0.49255168,98888.0,98887.0,1.26026002]
[1746671565802,0.49255168,98888.0,98887.0,1.24386002]
[1746671566163,0.49255168,98888.0,98887.0,1.24686002]
[1746671566818,0.49255168,98888.0,98887.0,0.94281485]
[1746671567021,0.50805168,98888.0,98887.0,0.94281485]
[1746671567399,0.51751152,98888.0,98887.0,0.94281485]
[1746671567552,0.51751152,98888.0,98887.0,0.9243]
[1746671567897,0.51751152,98888.0,98887.0,0.9213]
[1746671568101,0.51751152,98888.0,98887.0,0.4213]
[1746671568305,0.50201152,98888.0,98887.0,0.4213]
[1746671568813,0.49255168,98888.0,98887.0,0.4213]
[1746671569012,0.49255168,98888.0,98887.0,0.003]
[1746671569146,0.49255168,98888.0,98886.0,0.20225258]
[1746671569340,0.49355168,98888.0,98886.0,0.20225258]
[1746671569995,0.00946262,98887.0,98886.0,0.20225258]
[1746671572113,0.20226946,98878.0,98876.0,0.0009]
[1746671572315,0.21726946,98878.0,98876.0,0.0009]
[1746671572489,0.21790951,98878.0,98876.0,0.0009]
[1746671572695,0.0311,98877.0,98876.0,0.0009]
[1746671572913,0.13289412,98877.0,98876.0,0.0009]
[1746671573572,0.47289412,98877.0,98876.0,0.0009]
[1746671573726,0.48435674,98877.0,98876.0,0.0009]
[1746671573928,0.55728992,98868.0,98867.0,0.04670922]
[1746671574175,0.55728992,98868.0,98808.0,0.015]
[1746671574176,0.21735746,98835.0,98834.0,0.06112199]
[1746671574492,0.33495158,98835.0,98834.0,0.06112199]
[1746671575972,0.33495158,98835.0,98834.0,0.06125633]
[1746671576492,0.67495158,98835.0,98834.0,0.06125633]
[1746671576702,0.67495158,98835.0,98834.0,0.04565633]
[1746671576895,0.68195158,98835.0,98834.0,0.04565633]
[1746671577544,0.67795158,98835.0,98834.0,0.04565633]
[1746671577746,0.67495158,98835.0,98834.0,0.00013434]
[1746671577905,0.68095158,98835.0,98834.0,0.00013434]
[1746671578061,0.14359412,98835.0,98834.0,0.00013434]
[1746671578472,0.12859412,98835.0,98834.0,0.00013434]
[1746671578683,0.011,98835.0,98826.0,0.20237589]
[1746671578881,0.01111869,98835.0,98832.0,0.2023629]
[1746671579734,0.01111869,98835.0,98832.0,0.21248108]
[1746671579955,0.00011869,98835.0,98832.0,0.21248108]
[1746671580418,0.01111869,98835.0,98832.0,0.21248108]
[1746671580645,0.00611869,98835.0,98832.0,0.21248108]
[1746671580889,0.004375,98835.0,98832.0,0.2023629]
[1746671581111,0.007375,98835.0,98832.0,0.21248108]
[1746671581330,0.01011613,98852.0,98847.0,0.20233159]
[1746671581788,0.01011623,98851.0,98843.0,0.20233936]
[1746671582188,0.01011613,98852.0,98845.0,0.20233579]
[1746671582712,0.01011613,98852.0,98847.0,0.20233197]
[1746671582930,0.01011674,98846.0,98840.0,0.20234572]
[1746671583128,0.49463079,98850.0,98842.0,0.20234214]
[1746671583349,0.01011684,98845.0,98840.0,0.20234572]
[1746671583603,0.01011654,98848.0,98842.0,0.20234142]
[1746671583780,0.21244407,98850.0,98842.0,0.20234142]
[1746671583954,0.21244407,98850.0,98836.0,0.20235538]
[1746671583955,0.01011715,98842.0,98836.0,0.20235538]
[1746671584155,0.10179412,98841.0,98836.0,0.20235538]
[1746671584468,0.10179412,98841.0,98838.0,0.20235044]
[1746671585042,0.01011644,98849.0,98843.0,0.20233931]
[1746671585043,0.01011654,98848.0,98843.0,0.20233931]
[1746671585278,0.010115,98863.0,98846.0,0.01011674]
[1746671585401,0.01011582,98855.0,98851.0,0.20232456]
[1746671586018,0.01011623,98851.0,98846.0,0.20233289]
[1746671586282,0.20231332,98857.0,98837.0,0.20235296]
[1746671586283,0.01011684,98845.0,98837.0,0.20235296]
[1746671586467,0.002,98842.0,98830.0,0.20236633]
[1746671586675,0.10179412,98844.0,98843.0,0.20234108]
[1746671586879,0.10179412,98844.0,98840.0,0.20234722]
[1746671587008,0.002,98841.0,98840.0,0.20234722]
[1746671587660,0.11191107,98844.0,98840.0,0.20234722]
[1746671587860,0.01011644,98849.0,98842.0,0.2023418]
[1746671588060,0.29230305,98870.0,98849.0,0.01011644]
[1746671588303,0.29230305,98870.0,98844.0,0.01011695]
[1746671588304,0.0101149,98864.0,98859.0,0.20230649]
[1746671588460,0.31421084,98863.0,98856.0,0.20231435]
[1746671588641,0.01011541,98859.0,98853.0,0.20232061]
[1746671588940,0.11190963,98858.0,98853.0,0.20232061]
[1746671589145,0.01011633,98850.0,98836.0,0.20235408]
[1746671589344,0.01011695,98844.0,98818.0,0.00202352]
[1746671589569,0.21246953,98838.0,98831.0,0.20236398]
[1746671589770,0.01011777,98836.0,98829.0,0.20236947]
[1746671589943,0.01011756,98838.0,98831.0,0.20236524]
[1746671590163,0.01011725,98841.0,98831.0,0.20236524]
[1746671590164,0.01011725,98841.0,98833.0,0.20236155]
[1746671590374,0.01011725,98841.0,98820.0,0.0101194]
[1746671590375,0.2124758,98835.0,98817.0,0.2023941]
[1746671590576,0.2124758,98835.0,98792.0,0.0151]
[1746671590577,0.23286155,98833.0,98797.0,0.2024345]
[1746671590774,0.23286155,98833.0,98786.0,0.20245783]
[1746671590775,0.01012155,98799.0,98786.0,0.20245783]
[1746671590951,0.01012145,98800.0,98785.0,0.01012299]
[1746671591154,0.10179412,98800.0,98798.0,0.20243192]
[1746671591503,0.01012299,98785.0,98778.0,0.20247423]
[1746671591711,0.21257338,98790.0,98772.0,0.01012432]
[1746671591934,0.0101233,98782.0,98775.0,0.20247901]
[1746671592162,0.21259556,98780.0,98766.0,0.20249831]
[1746671592362,0.31438968,98780.0,98768.0,0.20249313]
[1746671592562,0.33088968,98780.0,98768.0,0.20249313]
[1746671592774,0.33088968,98780.0,98758.0,0.01012576]
[1746671592775,0.23477423,98778.0,98759.0,0.20251186]
[1746671592982,0.23477423,98778.0,98720.0,0.36456]
[1746671592983,0.67656835,98778.0,98742.0,0.20254767]
[1746671593204,0.67656835,98778.0,98760.0,0.20251089]
[1746671593405,0.67656835,98778.0,98750.0,0.01103658]
[1746671593406,0.67676835,98778.0,98763.0,0.20250449]
[1746671593610,0.67676835,98778.0,98750.0,0.00091]
[1746671593815,0.47429412,98778.0,98758.0,0.01012576]
[1746671594023,0.47429412,98778.0,98763.0,0.20250479]
[1746671594236,0.20245806,98786.0,98763.0,0.20250479]
[1746671594237,0.0154,98803.0,98763.0,0.20250479]
[1746671594461,0.002,98778.0,98777.0,0.00013445]
[1746671594654,0.10579412,98778.0,98777.0,0.00013445]
[1746671595057,0.13579412,98778.0,98777.0,0.00013445]
[1746671595471,0.11989412,98778.0,98777.0,0.00013445]
[1746671595626,0.10179412,98778.0,98777.0,0.00013445]
[1746671596863,0.47379412,98778.0,98777.0,0.00013445]
[1746671597098,0.47035773,98778.0,98777.0,0.00013445]
[1746671597300,0.45445773,98778.0,98777.0,0.00013445]
[1746671597502,0.10035773,98778.0,98777.0,0.00013445]
[1746671597845,0.002,98778.0,98777.0,0.20261073]
[1746671598151,0.006,98778.0,98777.0,0.20261073]
[1746671598380,0.004,98778.0,98777.0,0.20261073]
[1746671598583,0.007,98778.0,98777.0,0.20261073]
[1746671599847,0.003,98778.0,98777.0,0.20261073]
[1746671600050,0.001,98778.0,98777.0,0.20261073]
[1746671600478,0.01012309,98784.0,98779.0,0.20247097]
[1746671600657,0.10179412,98783.0,98779.0,0.20247097]
[1746671600836,0.10179412,98783.0,98781.0,0.20246683]
[1746671601284,0.10179412,98783.0,98779.0,0.20247097]
[1746671602662,0.10179412,98783.0,98781.0,0.20246672]
[1746671603106,0.10179412,98783.0,98780.0,0.20247013]
[1746671603278,0.10379412,98783.0,98780.0,0.20247013]
[1746671603478,0.10479412,98783.0,98780.0,0.20247013]
[1746671604123,0.0101235,98780.0,98777.0,0.00013445]
[1746671604258,0.11291731,98783.0,98777.0,0.00013445]
[1746671604463,0.0101235,98780.0,98777.0,0.00013445]
[1746671604703,0.10179412,98779.0,98777.0,0.00013445]
[1746671604864,0.20247423,98778.0,98777.0,0.00013445]
[1746671605114,0.30426835,98778.0,98777.0,0.00013445]
[1746671605421,0.10179412,98778.0,98777.0,0.00013445]
[1746671605653,0.10179412,98778.0,98777.0,0.20261073]
[1746671605833,0.01112319,98783.0,98778.0,0.20247423]
[1746671606015,0.0101234,98781.0,98778.0,0.20247423]
[1746671606585,0.001,98780.0,98778.0,0.20247423]
[1746671606787,0.001,98780.0,98777.0,0.00013445]
[1746671606788,0.3042663,98779.0,98777.0,0.00013445]
[1746671607272,0.10179412,98779.0,98777.0,0.00013445]
[1746671608414,0.10379412,98779.0,98777.0,0.00013445]
[1746671608827,0.20247423,98778.0,98777.0,0.00013445]
[1746671609051,0.33716835,98778.0,98777.0,0.00013445]
[1746671609260,0.67716835,98778.0,98777.0,0.00013445]
[1746671610551,0.6927092,98778.0,98777.0,0.00013445]
[1746671610748,0.6937092,98778.0,98777.0,0.00013445]
[1746671611623,0.67916835,98778.0,98777.0,0.00013445]
[1746671611825,0.002,98778.0,98777.0,0.00013445]
[1746671612620,0.001,98778.0,98777.0,0.00013445]
[1746671612823,0.006,98778.0,98777.0,0.00013445]
[1746671613193,0.20247317,98779.0,98777.0,0.00013445]
[1746671613395,0.006,98778.0,98777.0,0.00013445]
[1746671613604,0.007,98778.0,98777.0,0.00013445]
[1746671613810,0.001,98778.0,98777.0,0.00013445]
[1746671614207,0.002,98778.0,98777.0,0.00013445]
[1746671614828,0.15470784,98779.0,98777.0,0.00013445]
[1746671616036,0.001,98778.0,98777.0,0.00013445]
[1746671616243,0.15470784,98779.0,98777.0,0.00013445]
[1746671616591,0.15570784,98779.0,98777.0,0.00013445]
[1746671616787,0.001,98778.0,98777.0,0.00013445]
[1746671617874,0.001,98779.0,98777.0,0.00013445]
[1746671618075,0.001,98779.0,98777.0,0.20260932]
[1746671618866,0.0101234,98781.0,98777.0,0.21273313]
[1746671619062,0.0101234,98781.0,98778.0,0.0163]
[1746671619270,0.0101234,98781.0,98777.0,0.21273313]
[1746671619515,0.21258548,98784.0,98779.0,0.0101236]
[1746671619717,0.01012319,98783.0,98779.0,0.0101236]
[1746671620183,0.0101234,98781.0,98777.0,0.21473313]
[1746671620320,0.0101235,98780.0,98777.0,0.00113445]
[1746671620667,0.0101235,98780.0,98777.0,0.00013445]
[1746671621055,0.21259497,98780.0,98777.0,0.00013445]
[1746671621472,0.21259444,98780.0,98777.0,0.00013445]
[1746671622101,0.20247423,98778.0,98777.0,0.00013445]
[1746671622522,0.20247423,98778.0,98777.0,0.00113445]
[1746671622861,0.20247423,98778.0,98777.0,0.00013445]
[1746671623082,0.20247423,98778.0,98777.0,0.00113445]
[1746671623509,0.01012309,98784.0,98777.0,0.00113445]
[1746671623760,0.3149128,98906.0,98802.0,0.20242361]
[1746671623761,0.01012043,98810.0,98802.0,0.20242361]
[1746671623963,0.01012043,98810.0,98784.0,0.0158]
[1746671623964,0.00947317,98809.0,98798.0,0.00202428]
[1746671624163,0.21188499,98809.0,98803.0,0.21254354]
[1746671624307,0.01012227,98792.0,98789.0,0.0161]
[1746671624516,0.01012186,98796.0,98786.0,0.01012289]
[1746671624731,0.01012166,98798.0,98792.0,0.21256591]
[1746671624944,0.01012176,98797.0,98793.0,0.01012217]
[1746671626139,0.01012176,98797.0,98793.0,0.01412217]
[1746671626353,0.01012176,98797.0,98793.0,0.01312217]
[1746671626733,0.01012176,98797.0,98793.0,0.01512217]
[1746671626933,0.01012186,98796.0,98793.0,0.002]
[1746671627136,0.01012176,98797.0,98793.0,0.01212217]
[1746671627439,0.01012166,98798.0,98794.0,0.21256351]
[1746671627609,0.01012166,98798.0,98794.0,0.20244144]
[1746671627754,0.01012155,98799.0,98794.0,0.21256351]
[1746671628210,0.01012155,98799.0,98793.0,0.004]
[1746671628211,0.01012176,98797.0,98793.0,0.004]
[1746671628391,0.01012155,98799.0,98794.0,0.21256351]
[1746671628598,0.01012094,98805.0,98796.0,0.2125592]
[1746671628800,0.20241544,98807.0,98794.0,0.01012207]
[1746671628801,0.01012012,98813.0,98806.0,0.01012084]
[1746671629137,0.01012043,98810.0,98806.0,0.20241499]
[1746671629416,0.01012063,98808.0,98804.0,0.21254021]
[1746671630055,0.01012094,98805.0,98800.0,0.2125492]
[1746671630260,0.01012094,98805.0,98796.0,0.2034373]
[1746671630261,0.20242531,98802.0,98796.0,0.2034373]
[1746671630463,0.01012155,98799.0,98796.0,0.001]
[1746671630679,0.20243324,98798.0,98796.0,0.001]
[1746671630822,0.20243324,98798.0,98777.0,0.20261013]
[1746671630823,0.01012289,98786.0,98778.0,0.20247258]
[1746671631031,0.20247218,98779.0,98777.0,0.00013445]
[1746671631853,0.10179412,98778.0,98777.0,0.00013445]
[1746671633029,0.11799412,98778.0,98777.0,0.00013445]
[1746671633471,0.13439412,98778.0,98777.0,0.00013445]
[1746671634269,0.21258922,98783.0,98777.0,0.00013445]
[1746671634270,0.01467281,98786.0,98777.0,0.00013445]
[1746671634470,0.01012309,98784.0,98777.0,0.00013445]
[1746671634667,0.0101233,98782.0,98777.0,0.00013445]
[1746671634838,0.0101233,98782.0,98778.0,0.20247423]
[1746671635432,0.10179412,98783.0,98780.0,0.20246964]
[1746671636389,0.001,98782.0,98780.0,0.20246964]
[1746671636624,0.001,98782.0,98780.0,0.19564433]
[1746671636919,0.01012289,98786.0,98782.0,0.20246475]
[1746671637073,0.001,98783.0,98782.0,0.20246475]
[1746671637279,0.002,98783.0,98782.0,0.20246475]
[1746671637497,0.001,98783.0,98782.0,0.20246475]
[1746671637704,0.20247276,98779.0,98777.0,0.00013445]
[1746671637912,0.13299412,98778.0,98777.0,0.00013445]
[1746671640111,0.48753497,98778.0,98777.0,0.00013445]
[1746671640768,0.44179412,98778.0,98777.0,0.00013445]
[1746671641528,0.01012299,98785.0,98778.0,0.20247423]
[1746671641732,0.0101235,98780.0,98777.0,0.00013445]
[1746671641936,0.01012319,98783.0,98778.0,0.20247423]
[1746671642539,0.34,98784.0,98780.0,0.20246836]
[1746671643062,0.35012309,98784.0,98778.0,0.20247423]
[1746671643637,0.01012309,98784.0,98778.0,0.20247423]
[1746671643820,0.01312319,98783.0,98778.0,0.20247423]
[1746671644222,0.003,98783.0,98780.0,0.2024692]
[1746671645098,0.01012319,98783.0,98778.0,0.20246877]
[1746671645311,0.001,98784.0,98781.0,0.20246793]
[1746671645729,0.35012289,98786.0,98781.0,0.20246793]
[1746671645951,0.01012309,98784.0,98781.0,0.20246793]
[1746671646152,0.01112319,98783.0,98778.0,0.20246877]
[1746671646556,0.45191701,98786.0,98782.0,0.20246453]
[1746671646786,0.01012309,98784.0,98778.0,0.20246877]
[1746671647000,0.01012309,98784.0,98780.0,0.20246961]
[1746671647463,0.0101233,98782.0,98778.0,0.20246877]
[1746671647873,0.21259506,98780.0,98777.0,0.10013445]
[1746671648103,0.23427423,98778.0,98777.0,0.10013445]
[1746671648299,0.33606835,98778.0,98777.0,0.10013445]
[1746671649348,0.33806835,98778.0,98777.0,0.10013445]
[1746671649607,0.3526092,98778.0,98777.0,0.10013445]
[1746671649817,0.6946092,98778.0,98777.0,0.10013445]
[1746671651232,0.004,98778.0,98777.0,0.10013445]
[1746671651407,0.10579412,98778.0,98777.0,0.10013445]
[1746671651608,0.44579412,98778.0,98777.0,0.10013445]
[1746671652069,0.344,98778.0,98777.0,0.10013445]
[1746671652719,0.004,98778.0,98777.0,0.30261073]
[1746671653079,0.01012278,98787.0,98783.0,0.20246269]
[1746671653280,0.01012309,98784.0,98780.0,0.20246975]
[1746671653514,0.01012299,98785.0,98780.0,0.20246975]
[1746671653735,0.21677596,98790.0,98786.0,0.20245629]
[1746671653939,0.01012227,98792.0,98784.0,0.20246193]
[1746671654151,0.01012258,98789.0,98784.0,0.20246193]
[1746671654797,0.0101235,98780.0,98764.0,0.01012514]
[1746671655052,0.20247281,98779.0,98766.0,0.20249776]
[1746671655272,0.10179412,98778.0,98777.0,0.10113445]
[1746671655608,0.10179412,98778.0,98777.0,0.10013445]
[1746671656498,0.10279412,98778.0,98777.0,0.10013445]
[1746671657908,0.10379412,98778.0,98777.0,0.10013445]
[1746671658318,0.10279412,98778.0,98777.0,0.10013445]
[1746671658561,0.10179412,98778.0,98777.0,0.10013445]
[1746671658795,0.10379412,98778.0,98777.0,0.10013445]
[1746671659638,0.10279412,98778.0,98777.0,0.10013445]
[1746671659786,0.10379412,98778.0,98777.0,0.10013445]
[1746671660603,0.10279412,98778.0,98777.0,0.10013445]
[1746671660810,0.10379412,98778.0,98777.0,0.10013445]
[1746671661012,0.10279412,98778.0,98777.0,0.10013445]
[1746671661624,0.001,98778.0,98777.0,0.10013445]
[1746671661844,0.002,98778.0,98777.0,0.10013445]
[1746671662252,0.10279412,98778.0,98777.0,0.10013445]
[1746671662694,0.10379412,98778.0,98777.0,0.10013445]
[1746671662897,0.10279412,98778.0,98777.0,0.10013445]
[1746671663100,0.10179412,98778.0,98777.0,0.10013445]
[1746671664171,0.10279412,98778.0,98777.0,0.10013445]
[1746671664588,0.10179412,98778.0,98777.0,0.10013445]
[1746671664958,0.10279412,98778.0,98777.0,0.10113445]
[1746671665178,0.10279412,98778.0,98777.0,0.10013445]
[1746671667352,0.10379412,98778.0,98777.0,0.10013445]
[1746671669358,0.09879412,98778.0,98777.0,0.10013445]
[1746671669574,0.002,98778.0,98777.0,0.30261073]
[1746671671096,0.001,98778.0,98777.0,0.33341073]
[1746671671312,0.001,98778.0,98777.0,0.43520485]
[1746671671563,0.001,98778.0,98777.0,0.43620485]
[1746671672009,0.001,98778.0,98777.0,0.33441073]
[1746671674643,0.001,98778.0,98777.0,0.30361073]
[1746671675745,0.001,98778.0,98777.0,0.43770485]
[1746671675746,0.002,98778.0,98777.0,0.43770485]
[1746671677460,0.003,98778.0,98777.0,0.45070485]
[1746671677931,0.002,98778.0,98777.0,0.45170485]
[1746671678344,0.002,98778.0,98777.0,0.32261073]
[1746671678740,0.002,98778.0,98777.0,0.32861073]
[1746671679002,0.002,98778.0,98777.0,0.31761073]
[1746671679459,0.002,98778.0,98777.0,0.32061073]
[1746671680107,0.01012248,98790.0,98785.0,0.20245803]
[1746671680330,0.01012248,98790.0,98777.0,0.61425826]
[1746671680331,0.20247229,98779.0,98777.0,0.60713445]
[1746671680674,0.11749412,98778.0,98777.0,0.60713445]
[1746671680766,0.11749412,98778.0,98777.0,0.60413445]
[1746671681234,0.11749412,98778.0,98777.0,0.60713445]
[1746671681399,0.11749412,98778.0,98777.0,0.60413445]
[1746671681624,0.14639696,98778.0,98777.0,0.10113445]
[1746671681833,0.13289412,98778.0,98777.0,0.10113445]
[1746671682029,0.47289412,98778.0,98777.0,0.10113445]
[1746671682396,0.50286452,98778.0,98777.0,0.10113445]
[1746671682592,0.50086452,98778.0,98777.0,0.10113445]
[1746671683002,0.50486452,98778.0,98777.0,0.10113445]
[1746671683266,0.44579412,98778.0,98777.0,0.10113445]
[1746671683473,0.44379412,98778.0,98777.0,0.10113445]
[1746671683682,0.49073497,98778.0,98777.0,0.10113445]
[1746671683887,0.49573497,98778.0,98777.0,0.10113445]
[1746671684313,0.48873497,98778.0,98777.0,0.10113445]
[1746671684522,0.49373497,98778.0,98777.0,0.10113445]
[1746671684731,0.49873497,98778.0,98777.0,0.10113445]
[1746671684946,0.48273497,98778.0,98777.0,0.10113445]
[1746671685362,0.44679412,98778.0,98777.0,0.10113445]
[1746671685816,0.45179412,98778.0,98777.0,0.10113445]
[1746671685995,0.44179412,98778.0,98777.0,0.10113445]
[1746671686195,0.45179412,98778.0,98777.0,0.10113445]
[1746671686617,0.44679412,98778.0,98777.0,0.10113445]
[1746671686885,0.46133497,98778.0,98777.0,0.10113445]
[1746671687144,0.49773497,98778.0,98777.0,0.10113445]
[1746671687479,0.48773497,98778.0,98777.0,0.10113445]
[1746671687690,0.49273497,98778.0,98777.0,0.10113445]
[1746671687915,0.49673497,98778.0,98777.0,0.10113445]
[1746671688303,0.10179412,98778.0,98777.0,0.10113445]
[1746671688456,0.10579412,98778.0,98777.0,0.10113445]
[1746671688656,0.10179412,98778.0,98777.0,0.10113445]
[1746671689061,0.10679412,98778.0,98777.0,0.10113445]
[1746671689269,0.10179412,98778.0,98777.0,0.10113445]
[1746671690016,0.10679412,98778.0,98777.0,0.10113445]
[1746671690216,0.12133497,98778.0,98777.0,0.10113445]
[1746671690435,0.11633497,98778.0,98777.0,0.10113445]
[1746671690621,0.11633497,98778.0,98777.0,0.10213445]
[1746671690622,0.12333497,98778.0,98777.0,0.10213445]
[1746671690831,0.12333497,98778.0,98777.0,0.10113445]
[1746671691241,0.12933497,98778.0,98777.0,0.10213445]
[1746671691382,0.12333497,98778.0,98777.0,0.10113445]
[1746671691735,0.15493497,98778.0,98777.0,0.10113445]
[1746671691894,0.16093497,98778.0,98777.0,0.10213445]
[1746671692094,0.15393497,98778.0,98777.0,0.10213445]
[1746671692286,0.15393497,98778.0,98777.0,0.10113445]
[1746671692287,0.14793497,98778.0,98777.0,0.10113445]
[1746671692487,0.14993497,98778.0,98777.0,0.10113445]
[1746671692737,0.15593497,98778.0,98777.0,0.10213445]
[1746671692928,0.15393497,98778.0,98777.0,0.10213445]
[1746671693388,0.15593497,98778.0,98777.0,0.10213445]
[1746671693624,0.15393497,98778.0,98777.0,0.10213445]
[1746671693910,0.16143475,98778.0,98777.0,0.10213445]
[1746671694097,0.16343475,98778.0,98777.0,0.10213445]
[1746671694489,0.16343475,98778.0,98777.0,0.10113445]
[1746671694490,0.15743475,98778.0,98777.0,0.10113445]
[1746671694861,0.16343475,98778.0,98777.0,0.10213445]
[1746671695262,0.13183475,98778.0,98777.0,0.10213445]
[1746671695582,0.16223475,98778.0,98777.0,0.10213445]
[1746671696354,0.16023475,98778.0,98777.0,0.10213445]
[1746671696559,0.16523475,98778.0,98777.0,0.10213445]
[1746671696899,0.15923475,98778.0,98777.0,0.10113445]
[1746671697283,0.16523475,98778.0,98777.0,0.10113445]
[1746671699519,0.5945237,98778.0,98777.0,0.10113445]
[1746671699731,0.21707044,98751.0,98750.0,0.00091]
[1746671700061,0.31886456,98751.0,98750.0,0.00136096]
[1746671700267,0.30432371,98751.0,98750.0,0.00136096]
[1746671700474,0.20252959,98751.0,98750.0,0.00136096]
[1746671700677,0.21265329,98753.0,98750.0,0.01736096]
[1746671700861,0.001,98751.0,98750.0,0.00136096]
[1746671701059,0.01012709,98745.0,98743.0,0.0158]
[1746671701267,0.21266705,98746.0,98743.0,0.0158]
[1746671701476,0.01012668,98749.0,98743.0,0.0158]
[1746671701477,0.01012678,98748.0,98744.0,0.0158]
[1746671701674,0.01012688,98747.0,98745.0,0.0158]
[1746671701906,0.00044823,98751.0,98749.0,0.20253352]
[1746671702124,0.00044823,98751.0,98748.0,0.01012678]
[1746671702298,0.00044823,98751.0,98750.0,0.0158]
[1746671702800,0.20297782,98751.0,98750.0,0.0158]
[1746671703094,0.00044823,98751.0,98750.0,0.0158]
[1746671703330,0.00144823,98751.0,98750.0,0.0158]
[1746671703940,0.00144823,98751.0,98750.0,0.0322]
[1746671704526,0.00044823,98751.0,98750.0,0.0332]
[1746671704725,0.00044823,98751.0,98750.0,0.0322]
[1746671704920,0.00044823,98751.0,98750.0,0.0332]
[1746671705455,0.00044823,98751.0,98750.0,0.23573164]
[1746671705675,0.00044823,98751.0,98750.0,0.0332]
[1746671706686,0.00044823,98751.0,98750.0,0.0322]
[1746671707161,0.00144823,98751.0,98750.0,0.0322]
[1746671707566,0.00044823,98751.0,98737.0,0.01012791]
[1746671707758,0.01012688,98747.0,98743.0,0.0315]
[1746671707956,0.01012688,98747.0,98744.0,0.0156]
[1746671708155,0.01012688,98747.0,98744.0,0.02572719]
[1746671708355,0.01012688,98747.0,98745.0,0.0156]
[1746671708559,0.01012688,98747.0,98746.0,0.0156]
[1746671709624,0.01012668,98749.0,98746.0,0.0156]
[1746671709968,0.01012678,98748.0,98740.0,0.20255066]
[1746671710370,0.00044823,98751.0,98748.0,0.01012678]
[1746671710575,0.00044823,98751.0,98750.0,0.21843164]
[1746671711804,0.00144823,98751.0,98750.0,0.21843164]
[1746671712431,0.00144823,98751.0,98750.0,0.71843164]
[1746671712634,0.00144823,98751.0,98750.0,0.71943164]
[1746671713036,0.00044823,98751.0,98750.0,0.73563164]
[1746671713343,0.00144823,98751.0,98750.0,0.73463164]
[1746671713541,0.00144823,98751.0,98750.0,0.73563164]
[1746671713759,0.00044823,98751.0,98750.0,0.73563164]
[1746671714002,0.00044823,98751.0,98750.0,0.73663164]
[1746671714384,0.00044823,98751.0,98750.0,0.73563164]
[1746671714587,0.00044823,98751.0,98750.0,0.73663164]
[1746671714784,0.00044823,98751.0,98750.0,0.73463164]
[1746671715226,0.00044823,98751.0,98750.0,0.73563164]
[1746671715602,0.00044823,98751.0,98750.0,1.73463164]
[1746671715808,0.00044823,98751.0,98750.0,1.71843164]
[1746671716235,0.00044823,98751.0,98750.0,1.71943164]
[1746671716443,0.00044823,98751.0,98750.0,1.501]
[1746671716656,0.00044823,98751.0,98750.0,1.5]
[1746671716965,0.08186239,98751.0,98750.0,1.5]
[1746671717100,0.55349736,98751.0,98750.0,1.501]
[1746671717313,0.56929736,98751.0,98750.0,1.0]
[1746671717705,0.56929736,98751.0,98750.0,1.001]
[1746671717906,0.56929736,98751.0,98750.0,1.0]
[1746671718124,0.56929736,98751.0,98750.0,1.002]